Workbook

Sheet Authorized Rev Req
A1: SoCalGas Revenue Requirement List
A2: Annual Period 2022
A3: Reporting Date: Quarter Ended December 31
B5: Revenue Requirement Date: | C5: 2022-01-01
B6: Advice Letter: | C6: AL 5915
A7: Filing Description | B7: Authority for Revenue Requirement as of 1/1/2022 | C7: Authorized Revenue Requirement ($000) | D7: Revenue Recovery Mechanism | E7: Balancing Account
A8: Safety Affordability Reliability Proceedings
A9: Total Allocated Base Margin | B9: D.19-09-051 | C9: 2797438.81 | D9: Allocated Base Margin | E9: N
A10: Pipeline Safety Enhancement Plan (PSEP) GRC - Local Transmission (subtracted from Base Margin and allocated here) | B10: D.19-09-051 | C10: 20025.2391 | D10: Local Transmission | E10: N
A11: Pipeline Safety Enhancement Plan (PSEP) GRC -Distribution (subtracted from Base Margin and allocated here) | B11: D.19-09-051 | C11: 28629.01 | D11: Distribution | E11: N
A12: Company Use Gas: Other | B12: D.20-02-045, AL 5884, AL 5915G | C12: 1792.692921 | D12: ECPT | E12: N
A13: Company Use Gas: Storage Load Balancing | B13: D.20-02-045, AL 5884, AL 5915G | C13: 1739.982378 | D13: ECPT | E13: N
A14: Exchange Revenues & Interutility Transactions | B14: D.20-02-045, AL 5884, AL 5915G | C14: 342.77791 | D14: ECPT | E14: N
A15: Unaccounted For (UAF) Gas | B15: D.20-02-045, AL 5884, AL 5915G | C15: 43865.64079 | D15: 47% Res (LUAF, Other) | E15: N
A16: Well Incidents & Surface Leaks | B16: D.20-02-045, AL 5884, AL 5915G | C16: 226.3891543 | D16: ECPT | E16: N
A17: SCG PSEP - 2017 Forecast Application RevReq Capital Cost - Local Transmission | B17: D.20-02-045, AL 5884, AL 5915G | C17: 381.0924644 | D17: Local Transmission | E17: N
A18: SCG PSEP - 2017 Forecast Application RevReq Capital Cost - Distribution | B18: D.20-02-045, AL 5884, AL 5915G | C18: 24839.85663 | D18: Distribution | E18: N
A19: AMI Balancing Account (AMIBA) | B19: D.20-02-045, AL 5884, AL 5915G | C19: -77756.9011 | D19: EPAM | E19: Y
A20: Residential Uncollectible Balancing Account (RUBA) | B20: D.20-02-045, AL 5884, AL 5915G | C20: 16080.82923 | D20: ECPT | E20: Y
A21: Affiliate Transfer Fee Account (ATFA) | B21: D.20-02-045, AL 5884, AL 5915G | C21: -56.8521172 | D21: EPAM | E21: Y
A22: Biomethane Cost Incentive Pgm Balancing Acct (BCIPBA) | B22: D.20-02-045, AL 5884, AL 5915G | C22: 10172.0832 | D22: ECPT | E22: Y
A23: Core Fixed Cost Account - Non NGV (CFCA) | B23: D.20-02-045, AL 5884, AL 5915G | C23: -28133.81894 | D23: CFCA | E23: Y
A24: Core Fixed Cost Account - NGV (CFCA) | B24: D.20-02-045, AL 5884, AL 5915G | C24: 9826.724141 | D24: Non-Residential | E24: Y
A25: Core Fixed Cost Account - C&I Shortfall (CFCA) | B25: D.20-02-045, AL 5884, AL 5915G | C25: 28765.69276 | D25: Non-Residential | E25: Y
A26: Economic Practicality Shortfall Memorandum Account (EPSMA) | B26: D.20-02-045, AL 5884, AL 5915G | C26: 395.853484 | D26: Non-Residential | E26: Y
A27: Enhanced Oil Recovery Account (EORA) | B27: D.20-02-045, AL 5884, AL 5915G | C27: 2530.55974 | D27: EPAM | E27: Y
A28: Hazardous Substance Cost-Recovery Account (HSCRA) | B28: D.20-02-045, AL 5884, AL 5915G | C28: 284.26279 | D28: ECPT | E28: Y
A29: Intervenor Award Memorandum Account (IAMA) | B29: D.20-02-045, AL 5884, AL 5915G | C29: 731.580665 | D29: ECPT | E29: Y
A30: Master Meter Balancing Account (MMBA) | B30: D.20-02-045, AL 5884, AL 5915G | C30: 17468.47031 | D30: EPAM | E30: Y
A31: Noncore Fixed Cost Account (NFCA) Margin | B31: D.20-02-045, AL 5884, AL 5915G | C31: 6370.180978 | D31: Non-Residential | E31: Y
A32: Noncore Fixed Cost Account (NFCA) Nonmargin | B32: D.20-02-045, AL 5884, AL 5915G | C32: -3275.185198 | D32: Non-Residential | E32: Y
A33: Integrated Transmission Balancing Account (ITBA) Margin | B33: D.20-02-045, AL 5884, AL 5915G | C33: 176.0981414 | D33: ECPT | E33: Y
A34: Compressor Station Fuel and Power Balancing Account (CFPBA) | B34: D.20-02-045, AL 5884, AL 5915G | C34: -1423.035883 | D34: ECPT | E34: Y
A35: Compression Services Balancing Account (CSBA) | B35: D.20-02-045, AL 5884, AL 5915G | C35: -68.36948884 | D35: Non-Residential | E35: Y
A36: Company-Use Fuel for Load Balancing Account (CUFLBA) | B36: D.20-02-045, AL 5884, AL 5915G | C36: -1168.448441 | D36: ECPT | E36: Y
A37: Noncore Storage Balancing Account (NSBA) | B37: D.20-02-045, AL 5884, AL 5915G | C37: 122.0512176 | D37: ECPT | E37: Y
A38: Pension Balancing Account (PBA) | B38: D.20-02-045, AL 5884, AL 5915G | C38: 11312.64409 | D38: EPAM | E38: Y
A39: PBOP Balancing Account (PBOPBA) | B39: D.20-02-045, AL 5884, AL 5915G | C39: -4328.422797 | D39: EPAM | E39: Y
A40: Safety Enhancement Capital Cost Balancing Account (SECCBA) - Local Transmission | B40: D.20-02-045, AL 5884, AL 5915G | C40: 22874.17654 | D40: Local Transmission | E40: Y
A41: Safety Enhancement Capital Cost Balancing Account (SECCBA) - Distribution | B41: D.20-02-045, AL 5884, AL 5915G | C41: 72521.18682 | D41: Distribution | E41: Y
A42: Safety Enhancement Expense Balancing Account (SEEBA) - Local Transmission | B42: D.20-02-045, AL 5884, AL 5915G | C42: 572.0979832 | D42: Local Transmission | E42: Y
A43: Safety Enhancement Expense Balancing Account (SEEBA) - Distribution | B43: D.20-02-045, AL 5884, AL 5915G | C43: 1611.907472 | D43: Distribution | E43: Y
A44: Research Royalty Memorandum Account (RRMA) | B44: D.20-02-045, AL 5884, AL 5915G | C44: -160.8244502 | D44: EPAM | E44: Y
A45: Self-Generation Program Memorandum Account (SGPMA) | B45: D.20-02-045, AL 5884, AL 5915G | C45: 16267.79819 | D45: SGIP | E45: Y
A46: System Operator Gas Account (SOGA) | B46: D.20-02-045, AL 5884, AL 5915G | C46: -57.47472488 | D46: ECPT | E46: Y
A47: Rewards & Penalties Balancing Account (RPBA) | B47: D.20-02-045, AL 5884, AL 5915G | C47: -266.7671576 | D47: EPAM | E47: Y
A48: Liability Insurance Premium Balancing Account (LIPBA) | B48: D.20-02-045, AL 5884, AL 5915G | C48: 14313.74818 | D48: EPAM | E48: Y
A49: NonCore Backbone Transmission | B49: D.20-02-045, AL 5884, AL 5915G | C49: 205899.099 | D49: Backbone Transmission | E49: N
A50: Storage Integrity Management Program Balancing Account (SIMPBA) Balance | B50: D.22-07-016, AL 6023 | C50: 0 | D50: EPAM | E50: Y
A51: On-Bill Financing Balancing Account (OBFBA) | B51: AL 5853-A | C51: 0 | D51: EPAM | E51: Y
A55: Subtotal Safety Affordability Reliability | C55: =SUM(C9:C54) -> 3240882.436
A57: Public Policy Proceedings
A58: AB32 Fees (subtracted from base margin and allocated here) | B58: D.19-09-051 | C58: 5107.071894 | D58: ECPT adjusted | E58: N
A59: Green House Gas Balancing Account (GHGBA) - Company Gas Compressor Revenue Requirement | B59: D.20-02-045, AL 5884, AL 5915G | C59: 2676.455882 | D59: ECPT | E59: N
A60: Green House Gas Balancing Account (GHGBA) - End User Revenue Requirement | B60: D.20-02-045, AL 5884, AL 5915G | C60: 421911.6559 | D60: GHG End User | E60: N
A61: Green House Gas Balancing Account (GHGBA) - LUAF Revenue Requirement | B61: D.20-02-045, AL 5884, AL 5915G | C61: 11523.70083 | D61: 47% Res (LUAF, Other) | E61: N
A62: Green House Gas Balancing Account (GHGBA) - Company Gas Compressor | B62: D.20-02-045, AL 5884, AL 5915G | C62: 110.1068734 | D62: ECPT | E62: Y
A63: Green House Gas Balancing Account (GHGBA) - End User | B63: D.20-02-045, AL 5884, AL 5915G | C63: 24082.11232 | D63: GHG End User | E63: Y
A64: Green House Gas Balancing Account (GHGBA) - LUAF | B64: D.20-02-045, AL 5884, AL 5915G | C64: 96.16147584 | D64: 47% Res (LUAF, Other) | E64: Y
A65: New Envirnomental Regulatory Balancing Account (NERBA) - Admin Fees Subaccount | B65: D.20-02-045, AL 5884, AL 5915G | C65: 3566.9059 | D65: ECPT adjusted | E65: Y
A66: New Environmental Regulatory Balancing Account (NERBA) - Leak Detection & Repair (LDAR) sub-account | B66: D.20-02-045, AL 5884, AL 5915G | C66: 1979.707886 | D66: EPAM | E66: Y
A67: New Envirnomental Regulatory Balancing Account (NERBA) -Natural Gas Leak Abatement Program | B67: D.20-02-045, AL 5884, AL 5915G | C67: -2147.512017 | D67: EPAM | E67: Y
A68: TLS Adjustment | B68: D.20-02-045, AL 5884, AL 5915G | C68: -6644.931817 | D68: Non-Residential | E68: N
A69: Natural Gas Leak Abatement Program Revenue Requirement | B69: AL 5915G | C69: 86446.46472 | D69: EPAM | E69: N
A70: Biogas Conditioning/Upgrading Svcs Bal Acct (BCSBA) | B70: D.20-02-045, AL 5884, AL 5915G | C70: -48.66967436 | D70: EPAM | E70: Y
A71: Diary Biomethane Project Balancing Account (DBPBA) | B71: D.20-02-045, AL 5884, AL 5915G | C71: 45457.03256 | D71: EPAM | E71: Y
A72: California Solar Iniative Thermal Memorandum Account (CSITPMA) | B72: D.20-02-045, AL 5884, AL 5915G | C72: 1411.38197 | D72: ECPT adjusted | E72: Y
A81: California Alternate Rates for Energy (CARE) | B81: AL 5891G, D.21-06-015 | C81: 229388.1321 | D81: Public Purpose Programs | E81: N
A82: Energy Efficiency | B82: AL 5891G, AL 5898-A | C82: 107144.935 | D82: Public Purpose Programs | E82: N
A83: RD&D | B83: AL 5891G | C83: 12406.90965 | D83: Public Purpose Programs | E83: N
A84: Bureau Of Equalization BOE | B84: AL 5891G | C84: 547.65497 | D84: Public Purpose Programs | E84: N
A85: Energy Savings Assistance | B85: AL 5891G, D.21-06-015 | C85: =0 -> 0 | D85: Public Purpose Programs | E85: N
A93: Subtotal Public Policy | C93: =SUM(C58:C92) -> 945015.2765
A95: EOR | B95: D.20-02-045, AL 5884 | C95: -19696.02666 | D95: EPAM
A97: Procurement
A98: Procurement | B98: D.98-07-068 | C98: 2584342.156 | D98: Core Procurement
A104: Subtotal Procrement | C104: =SUM(C98:C103) -> 2584342.156
A106: Total Authorized Revenue | C106: =C55+C93+C104+C95 -> 6750543.841

Sheet Incremental Rev Req
A1: SoCalGas Revenue Requirement List
A2: Annual Period 2022
A3: Reporting Date: Quarter Ended December 31
A5: Current Revenue Requirement ($000): | B5: 6750543.841
A6: Current Revenue Requirement Effective: | B6: 2022-01-01
A7: Approved Application(s), Implemented Since Jan 1 or To Be Implemented
A8: Filing Description | B8: Proceeding | C8: Authority for Revenue Requirement | D8: Authorized Revenue Requirement with FF&U ($000) | E8: Revenue Recovery Mechanism | F8: Authorized Revenue Requirement with FF&U ($000) - Breakout by Year
A9: Safety Affordability Reliability Proceedings | D9: =B6 -> 2022-01-01 | F9: 2022 | G9: 2023 | H9: 2024 | I9: 2025 | J9: 2026
A10: Total Allocated Base Margin | C10: D.19-09-051 | D10: =F10 -> 2797438.81 | E10: Allocated Base Margin | F10: 2797438.81 | G10: 3611906 | H10: =G10 -> 3611906 | I10: =H10 -> 3611906 | J10: =I10 -> 3611906
A11: Pipeline Safety Enhancement Plan (PSEP) GRC - Local Transmission (subtracted from Base Margin and allocated here) | C11: D.19-09-051 | D11: =F11 -> 20025.2391 | E11: Local Transmission | F11: 20025.2391 | G11: 21205.1253 | H11: =G11 -> 21205.1253 | I11: =0 -> 0 | J11: =0 -> 0
A12: Pipeline Safety Enhancement Plan (PSEP) GRC -Distribution (subtracted from Base Margin and allocated here) | C12: D.19-09-051 | D12: 28629.01 | E12: Distribution | F12: 28629.01 | G12: 30315.83 | H12: =G12 -> 30315.83 | I12: =0 -> 0 | J12: =0 -> 0
A13: Company Use Gas: Other | C13: D.20-02-045, AL 5884, AL 5915G | D13: 1792.692921 | E13: ECPT | F13: 1792.692921 | G13: =F13 -> 1792.692921 | H13: =0 -> 0 | I13: =H13 -> 0 | J13: 0
A14: Company Use Gas: Storage Load Balancing | C14: D.20-02-045, AL 5884, AL 5915G | D14: 1739.982378 | E14: ECPT | F14: 1739.982378 | G14: =F14 -> 1739.982378 | H14: =0 -> 0 | I14: 0 | J14: 0
A15: Exchange Revenues & Interutility Transactions | C15: D.20-02-045, AL 5884, AL 5915G | D15: 342.77791 | E15: ECPT | F15: 342.77791 | G15: 342.77791 | H15: =0 -> 0 | I15: 0 | J15: 0
A16: Unaccounted For (UAF) Gas | C16: D.20-02-045, AL 5884, AL 5915G | D16: 43865.64079 | E16: 47% Res (LUAF, Other) | F16: 43865.64079 | G16: 43865.64079 | H16: =0 -> 0 | I16: 0 | J16: 0
A17: Well Incidents & Surface Leaks | C17: D.20-02-045, AL 5884, AL 5915G | D17: 226.3891543 | E17: ECPT | F17: 226.3891543 | G17: 226.3891543 | H17: =0 -> 0 | I17: 0 | J17: 0
A18: SCG PSEP - 2017 Forecast Application RevReq Capital Cost - Local Transmission | C18: D.20-02-045, AL 5884, AL 5915G | D18: 381.0924644 | E18: Local Transmission | F18: 381.0924644 | G18: 381.0924644 | H18: =0 -> 0 | I18: 0 | J18: 0
A19: SCG PSEP - 2017 Forecast Application RevReq Capital Cost - Distribution | C19: D.20-02-045, AL 5884, AL 5915G | D19: 24839.85663 | E19: Distribution | F19: 24839.85663 | G19: 24839.85663 | H19: =0 -> 0 | I19: 0 | J19: 0
A20: AMI Balancing Account (AMIBA) | C20: D.20-02-045, AL 5884, AL 5915G | D20: -77756.9011 | E20: EPAM | F20: -77756.9011 | G20: -77756.9011 | H20: =0 -> 0 | I20: 0 | J20: 0
A21: Residential Uncollectible Balancing Account (RUBA) | C21: D.20-02-045, AL 5884, AL 5915G | D21: 16080.82923 | E21: ECPT | F21: 16080.82923 | G21: 16080.82923 | H21: =0 -> 0 | I21: 0 | J21: 0
A22: Affiliate Transfer Fee Account (ATFA) | C22: D.20-02-045, AL 5884, AL 5915G | D22: -56.8521172 | E22: EPAM | F22: -56.8521172 | G22: -56.8521172 | H22: =0 -> 0 | I22: 0 | J22: 0
A23: Biomethane Cost Incentive Pgm Balancing Acct (BCIPBA) | C23: D.20-02-045, AL 5884, AL 5915G | D23: 10172.0832 | E23: ECPT | F23: 10172.0832 | G23: 10172.0832 | H23: =0 -> 0 | I23: 0 | J23: 0
A24: Core Fixed Cost Account - Non NGV (CFCA) | C24: D.20-02-045, AL 5884, AL 5915G | D24: -28133.81894 | E24: CFCA | F24: -28133.81894 | G24: -28133.81894 | H24: =0 -> 0 | I24: 0 | J24: 0
A25: Core Fixed Cost Account - NGV (CFCA) | C25: D.20-02-045, AL 5884, AL 5915G | D25: 9826.724141 | E25: Non-Residential | F25: 9826.724141 | G25: 9826.724141 | H25: =0 -> 0 | I25: 0 | J25: 0
A26: Core Fixed Cost Account - C&I Shortfall (CFCA) | C26: D.20-02-045, AL 5884, AL 5915G | D26: 28765.69276 | E26: Non-Residential | F26: 28765.69276 | G26: 28765.69276 | H26: =0 -> 0 | I26: 0 | J26: 0
A27: Economic Practicality Shortfall Memorandum Account (EPSMA) | C27: D.20-02-045, AL 5884, AL 5915G | D27: 395.853484 | E27: Non-Residential | F27: 395.853484 | G27: 395.853484 | H27: =0 -> 0 | I27: 0 | J27: 0
A28: Enhanced Oil Recovery Account (EORA) | C28: D.20-02-045, AL 5884, AL 5915G | D28: 2530.55974 | E28: EPAM | F28: 2530.55974 | G28: 2530.55974 | H28: =0 -> 0 | I28: 0 | J28: 0
A29: Hazardous Substance Cost-Recovery Account (HSCRA) | C29: D.20-02-045, AL 5884, AL 5915G | D29: 284.26279 | E29: ECPT | F29: 284.26279 | G29: 284.26279 | H29: =0 -> 0 | I29: 0 | J29: 0
A30: Intervenor Award Memorandum Account (IAMA) | C30: D.20-02-045, AL 5884, AL 5915G | D30: 731.580665 | E30: ECPT | F30: 731.580665 | G30: 731.580665 | H30: =0 -> 0 | I30: 0 | J30: 0
A31: Master Meter Balancing Account (MMBA) | C31: D.20-02-045, AL 5884, AL 5915G | D31: 17468.47031 | E31: EPAM | F31: 17468.47031 | G31: 26489.88974 | H31: 29872.87257 | I31: 34359.90823 | J31: 39396.95928
A32: Noncore Fixed Cost Account (NFCA) Margin | C32: D.20-02-045, AL 5884, AL 5915G | D32: 6370.180978 | E32: Non-Residential | F32: 6370.180978 | G32: =F32 -> 6370.180978 | H32: =0 -> 0 | I32: 0 | J32: 0
A33: Noncore Fixed Cost Account (NFCA) Nonmargin | C33: D.20-02-045, AL 5884, AL 5915G | D33: -3275.185198 | E33: Non-Residential | F33: -3275.185198 | G33: =F33 -> -3275.185198 | H33: =0 -> 0 | I33: 0 | J33: 0
A34: Integrated Transmission Balancing Account (ITBA) Margin | C34: D.20-02-045, AL 5884, AL 5915G | D34: 176.0981414 | E34: ECPT | F34: 176.0981414 | G34: 176.0981414 | H34: =0 -> 0 | I34: 0 | J34: 0
A35: Compressor Station Fuel and Power Balancing Account (CFPBA) | C35: D.20-02-045, AL 5884, AL 5915G | D35: -1423.035883 | E35: ECPT | F35: -1423.035883 | G35: -1423.035883 | H35: =0 -> 0 | I35: 0 | J35: 0
A36: Compression Services Balancing Account (CSBA) | C36: D.20-02-045, AL 5884, AL 5915G | D36: -68.36948884 | E36: Non-Residential | F36: -68.36948884 | G36: -68.36948884 | H36: =0 -> 0 | I36: 0 | J36: 0
A37: Company-Use Fuel for Load Balancing Account (CUFLBA) | C37: D.20-02-045, AL 5884, AL 5915G | D37: -1168.448441 | E37: ECPT | F37: -1168.448441 | G37: -1168.448441 | H37: =0 -> 0 | I37: 0 | J37: 0
A38: Noncore Storage Balancing Account (NSBA) | C38: D.20-02-045, AL 5884, AL 5915G | D38: 122.0512176 | E38: ECPT | F38: 122.0512176 | G38: 122.0512176 | H38: =0 -> 0 | I38: 0 | J38: 0
A39: Pension Balancing Account (PBA) | C39: D.20-02-045, AL 5884, AL 5915G | D39: 11312.64409 | E39: EPAM | F39: 11312.64409 | G39: 11312.64409 | H39: =0 -> 0 | I39: =H39 -> 0 | J39: 0
A40: PBOP Balancing Account (PBOPBA) | C40: D.20-02-045, AL 5884, AL 5915G | D40: -4328.422797 | E40: EPAM | F40: -4328.422797 | G40: -4328.422797 | H40: =0 -> 0 | I40: 0 | J40: 0
A41: Safety Enhancement Capital Cost Balancing Account (SECCBA) - Local Transmission | C41: D.20-02-045, AL 5884, AL 5915G | D41: 22874.17654 | E41: Local Transmission | F41: 22874.17654 | G41: 22874.17654 | H41: =0 -> 0 | I41: 0 | J41: 0
A42: Safety Enhancement Capital Cost Balancing Account (SECCBA) - Distribution | C42: D.20-02-045, AL 5884, AL 5915G | D42: 72521.18682 | E42: Distribution | F42: 72521.18682 | G42: 72521.18682 | H42: =0 -> 0 | I42: 0 | J42: 0
A43: Safety Enhancement Expense Balancing Account (SEEBA) - Local Transmission | C43: D.20-02-045, AL 5884, AL 5915G | D43: 572.0979832 | E43: Local Transmission | F43: 572.0979832 | G43: 572.0979832 | H43: =0 -> 0 | I43: 0 | J43: 0
A44: Safety Enhancement Expense Balancing Account (SEEBA) - Distribution | C44: D.20-02-045, AL 5884, AL 5915G | D44: 1611.907472 | E44: Distribution | F44: 1611.907472 | G44: 1611.907472 | H44: =0 -> 0 | I44: 0 | J44: 0
A45: Research Royalty Memorandum Account (RRMA) | C45: D.20-02-045, AL 5884, AL 5915G | D45: -160.8244502 | E45: EPAM | F45: -160.8244502 | G45: -160.8244502 | H45: =0 -> 0 | I45: 0 | J45: 0
A46: Self-Generation Program Memorandum Account (SGPMA) | C46: D.20-02-045, AL 5884, AL 5915G | D46: 16267.79819 | E46: SGIP | F46: 16267.79819 | G46: 16267.79819 | H46: =0 -> 0 | I46: 0 | J46: 0
A47: System Operator Gas Account (SOGA) | C47: D.20-02-045, AL 5884, AL 5915G | D47: -57.47472488 | E47: ECPT | F47: -57.47472488 | G47: -57.47472488 | H47: =0 -> 0 | I47: 0 | J47: 0
A48: Rewards & Penalties Balancing Account (RPBA) | C48: D.20-02-045, AL 5884, AL 5915G | D48: -266.7671576 | E48: EPAM | F48: -266.7671576 | G48: -266.7671576 | H48: =0 -> 0 | I48: 0 | J48: 0
A49: Liability Insurance Premium Balancing Account (LIPBA) | C49: D.20-02-045, AL 5884, AL 5915G | D49: 14313.74818 | E49: EPAM | F49: 14313.74818 | G49: 14313.74818 | H49: =0 -> 0 | I49: 0 | J49: 0
A50: NonCore Backbone Transmission | C50: D.20-02-045, AL 5884, AL 5915G | D50: 205899.099 | E50: Backbone Transmission | F50: 205899.099 | G50: 209446.2524 | H50: =G50 -> 209446.2524 | I50: =0 -> 0 | J50: 0
A51: Storage Integrity Management Program Balancing Account (SIMPBA) Balance | C51: D.22-07-016, AL 6023 | D51: 0 | E51: EPAM | F51: 0 | G51: 35607.37704 | H51: 0 | I51: 0 | J51: 0
A52: On-Bill Financing Balancing Account (OBFBA) | C52: AL 5853-A | D52: =F52 -> 0 | E52: EPAM | F52: 0 | G52: 4574.364664 | H52: =0 -> 0 | I52: 0 | J52: 0
A57: Public Policy Proceedings
A58: AB32 Fees (subtracted from base margin and allocated here) | C58: D.19-09-051 | D58: =F58 -> 5107.071894 | E58: ECPT adjusted | F58: 5107.071894 | G58: =F58 -> 5107.071894 | H58: =0 -> 0 | I58: =H58 -> 0 | J58: 0
A59: Green House Gas Balancing Account (GHGBA) - Company Gas Compressor Revenue Requirement | C59: D.20-02-045, AL 5884, AL 5915G | D59: =F59 -> 2676.455882 | E59: ECPT | F59: 2676.455882 | G59: =F59 -> 2676.455882 | H59: =0 -> 0 | I59: 0 | J59: 0
A60: Green House Gas Balancing Account (GHGBA) - End User Revenue Requirement | C60: D.20-02-045, AL 5884, AL 5915G | D60: 421911.6559 | E60: GHG End User | F60: 421911.6559 | G60: 421911.6559 | H60: =0 -> 0 | I60: 0 | J60: 0
A61: Green House Gas Balancing Account (GHGBA) - LUAF Revenue Requirement | C61: D.20-02-045, AL 5884, AL 5915G | D61: 11523.70083 | E61: 47% Res (LUAF, Other) | F61: 11523.70083 | G61: 11523.70083 | H61: =0 -> 0 | I61: 0 | J61: 0
A62: Green House Gas Balancing Account (GHGBA) - Company Gas Compressor | C62: D.20-02-045, AL 5884, AL 5915G | D62: 110.1068734 | E62: ECPT | F62: 110.1068734 | G62: 110.1068734 | H62: =0 -> 0 | I62: 0 | J62: 0
A63: Green House Gas Balancing Account (GHGBA) - End User | C63: D.20-02-045, AL 5884, AL 5915G | D63: 24082.11232 | E63: GHG End User | F63: 24082.11232 | G63: 24082.11232 | H63: =0 -> 0 | I63: 0 | J63: 0
A64: Green House Gas Balancing Account (GHGBA) - LUAF | C64: D.20-02-045, AL 5884, AL 5915G | D64: 96.16147584 | E64: 47% Res (LUAF, Other) | F64: 96.16147584 | G64: 96.16147584 | H64: =0 -> 0 | I64: 0 | J64: 0
A65: New Envirnomental Regulatory Balancing Account (NERBA) - Admin Fees Subaccount | C65: D.20-02-045, AL 5884, AL 5915G | D65: 3566.9059 | E65: ECPT adjusted | F65: 3566.9059 | G65: 3566.9059 | H65: =0 -> 0 | I65: 0 | J65: 0
A66: New Environmental Regulatory Balancing Account (NERBA) - Leak Detection & Repair (LDAR) sub-account | C66: D.20-02-045, AL 5884, AL 5915G | D66: 1979.707886 | E66: EPAM | F66: 1979.707886 | G66: 1979.707886 | H66: =0 -> 0 | I66: 0 | J66: 0
A67: New Envirnomental Regulatory Balancing Account (NERBA) -Natural Gas Leak Abatement Program | C67: D.20-02-045, AL 5884, AL 5915G | D67: -2147.512017 | E67: EPAM | F67: -2147.512017 | G67: -2147.512017 | H67: =0 -> 0 | I67: 0 | J67: 0
A68: TLS Adjustment | C68: D.20-02-045, AL 5884, AL 5915G | D68: -6644.931817 | E68: Non-Residential | F68: -6644.931817 | G68: -6644.931817 | H68: =0 -> 0 | I68: 0 | J68: 0
A69: Natural Gas Leak Abatement Program Revenue Requirement | C69: AL 5915G | D69: 86446.46472 | E69: EPAM | F69: 86446.46472 | G69: =F69 -> 86446.46472 | H69: =G69 -> 86446.46472 | I69: =0 -> 0 | J69: =0 -> 0
A70: Biogas Conditioning/Upgrading Svcs Bal Acct (BCSBA) | C70: D.20-02-045, AL 5884, AL 5915G | D70: -48.66967436 | E70: EPAM | F70: -48.66967436 | G70: =F70 -> -48.66967436 | H70: =0 -> 0 | I70: =H70 -> 0 | J70: 0
A71: Diary Biomethane Project Balancing Account (DBPBA) | C71: D.20-02-045, AL 5884, AL 5915G | D71: 45457.03256 | E71: EPAM | F71: 45457.03256 | G71: =F71 -> 45457.03256 | H71: =0 -> 0 | I71: 0 | J71: 0
A72: California Solar Iniative Thermal Memorandum Account (CSITPMA) | C72: D.20-02-045, AL 5884, AL 5915G | D72: 1411.38197 | E72: ECPT adjusted | F72: 1411.38197 | G72: 1411.38197 | H72: =0 -> 0 | I72: 0 | J72: 0
A75: California Alternate Rates for Energy (CARE) | C75: AL 5891G, D.21-06-015 | D75: =F75 -> 229388.1321 | E75: Public Purpose Programs | F75: 229388.1321 | G75: 150983.2796 | H75: 152497.4174 | I75: 154039.1134 | J75: 155411.2686
A76: Energy Efficiency | C76: AL 5891G, AL 5898-A | D76: =F76 -> 107144.935 | E76: Public Purpose Programs | F76: 107144.935 | G76: 132220.3634 | H76: =G76 -> 132220.3634 | I76: 132220.3634 | J76: 132220.3634
A77: RD&D | C77: AL 5891G | D77: 12406.90965 | E77: Public Purpose Programs | F77: 12406.90965 | G77: =F77 -> 12406.90965 | H77: =0 -> 0 | I77: 0 | J77: 0
A78: Bureau Of Equalization BOE | C78: AL 5891G | D78: 547.65497 | E78: Public Purpose Programs | F78: 547.65497 | G78: =F78 -> 547.65497 | H78: =0 -> 0 | I78: 0 | J78: 0
A79: Energy Savings Assistance | C79: AL 5891G, D.21-06-015 | D79: 0 | E79: Public Purpose Programs | F79: 0 | G79: 122824.705 | H79: 122814.843 | I79: 122849.884 | J79: 122541.07
A83: EOR | C83: D.20-02-045, AL 5884 | D83: =F83 -> -19696.02666 | E83: EPAM | F83: -19696.02666 | G83: =F83 -> -19696.02666 | H83: =0 -> 0 | I83: =H83 -> 0 | J83: 0
A86: Procurement | C86: D.98-07-068 | D86: =F86 -> 2584342.156 | E86: Core Procurement | F86: 2584342.156 | G86: =0 -> 0 | H86: =G86 -> 0 | I86: =H86 -> 0 | J86: =I86 -> 0
A90: Total Approved, Implemented Since Jan 1 or To Be Implemented | D90: =SUM(D10:D89) -> 6750543.841 | F90: =SUM(F10:F89) -> 6750543.841 | G90: =SUM(G10:G89) -> 5105781.177 | H90: =SUM(H10:H89) -> 4396725.169 | I90: =SUM(I10:I89) -> 4055375.269 | J90: =SUM(J10:J89) -> 4061475.661
A92: CPUC Fee | E92: CPUC Fee | F92: 0.00577
A95: Pending Application(s) Not Yet Approved
A96: Filing Description | B96: Proceeding | C96: Basis of Revenue Requirement Forecast: Application, Amended Application , Amended Testimony, Proposed Settlement Agreement, Proposed Decision | D96: Proposed Revenue Requirement with FF&U ($000) | E96: Proposed Revenue Recovery Mechanism | F96: Incremental Revenue Requirement with FF&U ($000) - Breakout by Year
A97: Safety Affordability Reliability Proceedings | F97: 2022 | G97: 2023 | H97: 2024 | I97: 2025 | J97: 2026
A98: 2024 GRC Application | B98: A.22-05-015 | C98: Application | D98: =SUM(F98:J98) -> 971047 | E98: Allocated Base Margin | H98: =3661066-H10 -> 49160 | I98: =3946146-I10 -> 334240 | J98: =4199553-J10 -> 587647
A99: Pipeline Safety Enhancement Plan (PSEP) GRC - Local Transmission | B99: A.22-05-015 | C99: Application | D99: -5487.14862 | E99: Local Transmission | H99: -5487.14862
A100: Pipeline Safety Enhancement Plan (PSEP) GRC -Distribution | B100: A.22-05-015 | C100: Application | D100: 63454.75 | E100: Distribution | H100: 63454.75
A101: NonCore Backbone Transmission | B101: A.22-05-015 | C101: Application | D101: 22240.27738 | E101: Backbone Transmission | H101: 22240.27738
A102: TIMPBA | B102: A.22-05-015 | C102: Application | D102: 61269 | E102: Local Transmission | H102: 61269
A103: TIMPBA | B103: A.22-05-015 | C103: Application | D103: 169625 | E103: Backbone Transmission | H103: 169625
A104: Public Policy Proceedings | D104: 0
A105: Natural Gas Leak Abatement | B105: AL 5950 | C105: Advice Letter | D105: 41407.62708 | E105: EPAM | H105: 41407.62708
A106: Triennial Cost Allocation Proceeding | B106: A. 22-09-015 | C106: Application | D106: 0 | E106: EPAM | G106: 0 | H106: 0 | I106: 0 | J106: 0
A107: SoCalGas Cost of Capital Application | B107: A. 22-04-011 | C107: Application | D107: 246000 | E107: EPAM | G107: 61500 | H107: 61500 | I107: 61500 | J107: 61500
A108: Energy Efficiency | B108: A.22-03-008 | C108: Application | D108: =SUM(F108:J108) -> 60415.31974 | E108: Public Purpose Programs | H108: 19467.17603 | I108: 20077.38727 | J108: 20870.75644
A109: PPPS Filing | B109: AL 6052 | C109: Advice Letter | D109: =SUM(F109:J109) -> 45876.53762 | E109: Public Purpose Programs | G109: 45876.53762
D110: 0
D111: 0
A112: Regulatory Account Update | B112: AL 6045 | C112: Advice Letter | D112: 621.1520315 | E112: Local Transmission | G112: 621.1520315
A113: Regulatory Account Update | B113: AL 6045 | C113: Advice Letter | D113: 4388.878261 | E113: Distribution | G113: 4388.878261
A114: Regulatory Account Update | B114: AL 6045 | C114: Advice Letter | D114: 18693.95033 | E114: 47% Res (LUAF, Other) | G114: 18693.95033
A115: Regulatory Account Update | B115: AL 6045 | C115: Advice Letter | D115: -12795.42885 | E115: Non-Residential | G115: -12795.42885
A116: Regulatory Account Update | B116: AL 6045 | C116: Advice Letter | D116: 1699.09438 | E116: ECPT adjusted | G116: 1699.09438
A117: Regulatory Account Update | B117: AL 6045 | C117: Advice Letter | D117: -2.772762603 | E117: SGIP | G117: -2.772762603
A118: Regulatory Account Update | B118: AL 6045 | C118: Advice Letter | D118: 150019.2555 | E118: CFCA | G118: 150019.2555
A119: Regulatory Account Update | B119: AL 6045 | C119: Advice Letter | D119: 50970.42172 | E119: ECPT | G119: 50970.42172
A120: Regulatory Account Update | B120: AL 6045 | C120: Advice Letter | D120: 101166.0128 | E120: EPAM | G120: 101166.0128
A121: Regulatory Account Update | B121: AL 6045 | C121: Advice Letter | D121: -775165.7181 | E121: Allocated Base Margin | G121: -775165.7181
A122: Regulatory Account Update | B122: AL 6045 | C122: Advice Letter | D122: 98455.55724 | E122: Backbone Transmission | G122: 98455.55724
A123: Regulatory Account Update | B123: AL 6045 | C123: Advice Letter | D123: -17036.98966 | E123: GHG End User | G123: -17036.98966
D124: 0
D125: 0
A126: Total Pending, Filed but not Approved | D126: =SUM(D98:D124) -> 1296861.776 | F126: =SUM(F98:F125) -> 0 | G126: =SUM(G98:G125) -> -271610.0496 | H126: =SUM(H98:H125) -> 482636.6819 | I126: =SUM(I98:I125) -> 415817.3873 | J126: 670017.7564
